{"text_format":"3","workbook":"xlsx","n_sheets":2,"sheets":["Escala de tiempo","Acerca de"],"not_rendered":{"charts":1,"images":2,"defined_names":2},"read":"whole","date_system":"1900"}

{"sheet":"Escala de tiempo","index":0,"n_rows":49,"n_cols":10,"rows_kept":49}
[]
[]
[]
[{"$nulls":9},"PLANTILLAS DE ESCALA DE TIEMPO por Vertex42.com"]
[{"$nulls":9},"https://www.vertex42.com/ExcelTemplates/timeline.html"]
[]
[]
[{"$nulls":9},"Sugerencias para usar esta plantilla"]
[{"$nulls":9},"•  Insertar y eliminar filas completas al editar las tablas de datos"]
[{"$nulls":9},"•  Evitar dejar en blanco la columna de etiqueta"]
[{"$nulls":9},"•  Aplicar formato al eje horizontal para definir los límites mín. o máx."]
[{"$nulls":9},"•  Especificar una posición vertical entre -100 y 50"]
[{"$nulls":9},"•  Aplicar formato a etiquetas de datos individuales o marcadores para resaltar determinados eventos"]
[{"$nulls":9},"•  Leer los comentarios de la celda en la fila de encabezado de tabla para obtener más información"]
[]
[{"$nulls":9},"Otras notas"]
[{"$nulls":9},"•  Las líneas guía de hitos son barras de error en Y"]
[{"$nulls":9},"•  Las líneas guía de tareas son barras de error en Y"]
[{"$nulls":9},"•  Las duraciones de tareas son barras de error X"]
{"$rows_empty":8}
[null,"Tareas"]
[null,"Inicio","Finalización","Duración","Etiqueta","Posición vertical","Línea vertical"]
[]
[null,"2018-03-28",{"$f":"B31+D31-1","v":"2018-04-11"},15,{"$f":"\"Tarea 1 \"&CHAR(10)&TEXT(B31,\"d mmm\")&\" - \"&TEXT(C31,\"d mmm\")","v":"Tarea 1 \n28 mar - 11 abr"},-25,{"$f":"F31","v":-25}]
[null,{"$f":"C31+1","v":"2018-04-12"},"2018-05-01",20,{"$f":"\"Tarea 2 \"&CHAR(10)&TEXT(B32,\"d mmm\")&\" - \"&TEXT(C32,\"d mmm\")","v":"Tarea 2 \n12 abr - 1 may"},{"$f":"F31-15","v":-40},{"$f":"F32-F31","v":-15}]
[null,{"$f":"C32+1","v":"2018-05-02"},"2018-05-25",24,{"$f":"\"Tarea 3 \"&CHAR(10)&TEXT(B33,\"d mmm\")&\" - \"&TEXT(C33,\"d mmm\")","v":"Tarea 3 \n2 may - 25 may"},{"$f":"F32-15","v":-55},{"$f":"F33-F32","v":-15}]
[null,"2018-04-28","2018-07-12",76,"Etiqueta de tarea 4",-80,{"$f":"F34","v":-80}]
[null,"2018-06-15","2018-07-04",20,"Etiqueta de tarea 5",-30,{"$f":"F35","v":-30}]
[null,{"$f":"C35+1","v":"2018-07-05"},"2018-08-03",30,"Etiqueta de tarea 6",{"$f":"F35-15","v":-45},{"$f":"F36-F35","v":-15}]
[null,"2018-08-10","2018-09-10",32,"Etiqueta de tarea 7",-20,{"$f":"F37","v":-20}]
[null,{"$f":"C37+1","v":"2018-09-11"},"2018-09-15",5,"Etiqueta de tarea 8",-60,{"$f":"F38-F37","v":-40}]
[null,{"$f":"C38+1","v":"2018-09-16"},"2018-10-06",21,"Etiqueta de tarea 9",{"$f":"F38-15","v":-75},{"$f":"F39-F38","v":-15}]
[{"$nulls":4},"Inserta filas nuevas encima de esta"]
[]
[null,"Hitos"]
[null,"Fecha",null,null,"Etiqueta","Posición"]
[]
[null,"2018-04-02",null,null,{"$f":"\"Inicio, \"&TEXT(B45,\"d mmm\")","v":"Inicio, 2 abr"},30]
[null,{"$f":"C33","v":"2018-05-25"},null,null,"Hito n.º 1",25]
[null,{"$f":"C36","v":"2018-08-03"},null,null,"Hito n.º 2",20]
[null,{"$f":"C39","v":"2018-10-06"},null,null,{"$f":"\"Entregar, \"&TEXT(B48,\"d mmm\")","v":"Entregar, 6 oct"},15]
[{"$nulls":4},"Inserta filas nuevas encima de esta"]

{"sheet":"Acerca de","index":1,"n_rows":19,"n_cols":2,"rows_kept":19}
[]
[null,"ESCALA DE TIEMPO DEL PROYECTO por Vertex42.com"]
[null,"https://www.vertex42.com/ExcelTemplates/project-timeline.html"]
[]
[]
[null,"Acerca de esta plantilla"]
[null,"Esta plantilla utiliza un gráfico de dispersión con etiquetas de datos y barras de error para crear una escala de tiempo del proyecto que muestre los hitos y las tareas con duraciones. A diferencia de un gráfico de Gantt, que muestra cada tarea en una fila distinta, puedes controlar la posición vertical de las tareas dentro de la escala de tiempo. Puedes especificar la longitud de la línea guía vertical para mostrar las dependencias de tareas."]
[]
[null,"Este tipo de escala de tiempo del proyecto es principalmente útil para una visión general de un proyecto más que para mostrar una estructura de descomposición de trabajo detallada."]
[]
[null,"Más plantillas"]
[null,"Visita Vertex42.com para descargar otras plantillas de administración de escala de tiempo y proyecto."]
[null,"Más plantillas de escala de tiempo"]
[null,"Más plantillas de administración de proyectos"]
[]
[null,"Acerca de Vertex42"]
[null,"Vertex42.com ofrece plantillas de hoja de cálculo de diseño profesional para la empresa, el hogar y ámbitos educativos, la mayoría de las cuales se pueden descargar gratis. La colección incluye una amplia variedad de calendarios, planificadores y programaciones, así como hojas de cálculo de finanzas personales para presupuestos, reducción de deuda y amortización de préstamos."]
[]
[null,"Las empresas encontrarán facturas, hojas de horas, seguimiento de inventario, informes financieros y plantillas de planificación de proyectos. Los profesores y alumnos encontrarán recursos como programaciones de clase, libros y planillas de asistencia. Organiza tu vida familiar con planificadores de comidas, listas de verificación y registros de actividad física. Cada plantilla se investiga, perfecciona y mejora cuidadosamente con el tiempo gracias a los comentarios de miles de usuarios."]